bitfinex/quotes_SOLUSD_20250106
["timestamp","ask_amount","ask_price","bid_price","bid_amount"]
[1736183964556,8.77020158,219.43,219.39,0.83707785]
[1736183964733,8.77020158,219.43,219.38,5.0]
[1736183964933,2.2,219.46,219.39,0.83707785]
[1736183965251,8.77020158,219.43,219.39,0.83707785]
[1736183965635,8.77020158,219.44,219.39,0.83707785]
[1736183965841,12.27452215,219.55,219.44,5.0]
[1736183966036,8.1116,219.55,219.44,14.60727943]
[1736183966348,8.77020158,219.5,219.44,5.83707785]
[1736183966740,8.77020158,219.49,219.44,5.83707785]
[1736183967251,8.77020158,219.51,219.46,0.83707785]
[1736183967454,8.1116,219.55,219.46,5.83707785]
[1736183967753,21.60958629,219.58,219.48,0.83707785]
[1736183968052,8.77020158,219.52,219.48,5.0]
[1736183968233,8.77020158,219.52,219.49,0.83707785]
[1736183968433,8.77020158,219.5,219.46,5.0]
[1736183968654,8.77020158,219.49,219.46,5.0]
[1736183969028,8.77020158,219.5,219.46,5.0]
[1736183970556,2.2,219.54,219.46,5.0]
[1736183970743,8.77020158,219.5,219.46,5.0]
[1736183971448,8.77020158,219.51,219.48,5.0]
[1736183971654,2.2,219.54,219.48,5.0]
[1736183971846,8.77020158,219.51,219.48,5.0]
[1736183973154,8.77020158,219.5,219.47,0.83707785]
[1736183973457,8.77020158,219.5,219.46,5.0]
[1736183974655,8.77020158,219.5,219.46,5.83707785]
[1736183975343,8.77020158,219.5,219.46,5.0]
[1736183975756,8.77020158,219.5,219.47,5.0]
[1736183976138,8.77020158,219.5,219.45,5.83707785]
[1736183976457,8.77020158,219.5,219.45,0.83707785]
[1736183976663,8.77020158,219.5,219.46,5.0]
[1736183977548,8.77020158,219.5,219.47,0.83707785]
[1736183977869,8.77020158,219.49,219.46,5.83707785]
[1736183978177,8.77020158,219.51,219.46,5.83707785]
[1736183978386,8.77020158,219.5,219.46,5.83707785]
[1736183978970,8.77020158,219.51,219.48,0.83707785]
[1736183979450,8.77020158,219.5,219.48,0.83707785]
[1736183980061,2.2,219.54,219.48,0.83707785]
[1736183980356,8.77020158,219.52,219.48,0.83707785]
[1736183980860,2.2,219.54,219.52,0.83707785]
[1736183980861,8.77020158,219.54,219.52,0.83707785]
[1736183981060,8.77020158,219.55,219.52,0.83707785]
[1736183981267,8.77020158,219.54,219.52,0.83707785]
[1736183981451,8.77020158,219.54,219.5,5.83707785]
[1736183981646,8.77020158,219.52,219.5,5.83707785]
[1736183982046,8.77020158,219.53,219.5,5.83707785]
[1736183982674,8.77020158,219.52,219.5,5.83707785]
[1736183983475,8.77020158,219.52,219.5,0.83707785]
[1736183984463,8.77020158,219.52,219.48,6.606]
[1736183984464,8.77020158,219.51,219.48,7.44307785]
[1736183984670,8.77020158,219.5,219.48,5.83707785]
[1736183984863,8.77020158,219.5,219.48,5.0]
[1736183985055,8.77020158,219.49,219.48,5.0]
[1736183985456,8.77020158,219.5,219.48,5.83707785]
[1736183985676,8.77020158,219.51,219.48,5.83707785]
[1736183986282,8.77020158,219.51,219.49,0.83707785]
[1736183986984,8.77020158,219.53,219.49,0.83707785]
[1736183987368,8.77020158,219.54,219.51,0.83707785]
[1736183988372,8.77020158,219.54,219.5,5.0]
[1736183988681,8.77020158,219.53,219.5,5.0]
[1736183988860,8.77020158,219.51,219.5,5.0]
[1736183989381,8.77020158,219.53,219.5,5.0]
[1736183989957,8.77020158,219.54,219.5,5.0]
[1736183990563,8.77020158,219.54,219.51,0.83707785]
[1736183990767,8.77020158,219.56,219.53,0.83707785]
[1736183990960,8.77020158,219.56,219.53,5.83707785]
[1736183991866,30.37978787,219.58,219.55,5.0]
[1736183992760,21.60958629,219.58,219.55,5.0]
[1736183992963,30.37978787,219.58,219.55,5.0]
[1736183993184,8.77020158,219.57,219.55,5.0]
[1736183995492,21.60958629,219.58,219.56,0.83707785]
[1736183995669,21.60958629,219.58,219.56,9.60727943]
[1736183995866,21.60958629,219.58,219.57,13.77020158]
[1736183998074,2.2,219.66,219.63,0.83707785]
[1736183998279,2.2,219.66,219.64,5.0]
[1736184000297,8.77020158,219.67,219.64,5.0]
[1736184000690,8.77020158,219.66,219.64,5.0]
[1736184000876,8.77020158,219.65,219.6,5.0]
[1736184001190,8.77020158,219.61,219.58,5.0]
[1736184001382,8.77020158,219.61,219.57,0.83707785]
[1736184002378,8.77020158,219.61,219.59,5.83707785]
[1736184002697,8.77020158,219.62,219.59,5.0]
[1736184003001,8.77020158,219.62,219.59,5.83707785]
[1736184003614,8.77020158,219.6,219.54,5.0]
[1736184003780,8.77020158,219.58,219.54,5.0]
[1736184004603,2.2,219.6,219.55,0.83707785]
[1736184004604,10.97020158,219.6,219.55,0.83707785]
[1736184004910,8.77020158,219.56,219.54,5.0]
[1736184005104,8.77020158,219.55,219.54,5.0]
[1736184007188,8.77020158,219.55,219.49,0.83707785]
[1736184007391,8.77020158,219.51,219.49,0.83707785]
[1736184007597,8.77020158,219.52,219.49,0.83707785]
[1736184008099,28.77020158,219.57,219.51,0.83707785]
[1736184009222,8.77020158,219.57,219.51,0.83707785]
[1736184009391,13.5846,219.6,219.56,0.83707785]
[1736184009392,2.2,219.6,219.56,0.83707785]
[1736184009597,2.2,219.6,219.56,14.60727943]
[1736184010129,2.2,219.6,219.58,0.83707785]
[1736184010324,19.01455951,219.62,219.6,0.83707785]
[1736184010494,19.01455951,219.62,219.61,5.0]
[1736184010898,19.01455951,219.62,219.61,13.77020158]
[1736184011114,19.01455951,219.62,219.61,18.6841975]
[1736184012303,2.2,219.66,219.61,18.6841975]
[1736184012520,2.2,219.71,219.66,0.83707785]
[1736184012754,2.2,219.71,219.66,5.83707785]
[1736184013253,13.6841975,219.72,219.66,5.83707785]
[1736184013542,6.4998,219.76,219.68,0.83707785]
[1736184013737,13.6841975,219.74,219.7,0.83707785]
[1736184014117,13.6841975,219.71,219.69,5.0]
[1736184014342,13.6841975,219.7,219.66,5.83707785]
[1736184015043,13.6841975,219.71,219.66,5.83707785]
[1736184015219,13.6841975,219.71,219.68,5.83707785]
[1736184015420,13.6841975,219.73,219.68,5.83707785]
[1736184015846,13.6841975,219.73,219.7,0.83707785]
[1736184016323,13.6841975,219.74,219.7,0.83707785]
[1736184016546,13.6841975,219.71,219.68,5.0]
[1736184016742,13.6841975,219.7,219.68,5.0]
[1736184016928,13.6841975,219.71,219.68,5.83707785]
[1736184017124,15.8841975,219.74,219.7,0.83707785]
[1736184017631,15.8841975,219.74,219.68,5.0]
[1736184017632,13.6841975,219.73,219.68,5.83707785]
[1736184017820,13.6841975,219.71,219.68,5.83707785]
[1736184018144,15.8841975,219.74,219.68,5.83707785]
[1736184018531,13.6841975,219.73,219.68,5.83707785]
[1736184019244,15.8841975,219.74,219.7,5.83707785]
[1736184019544,2.2,219.74,219.72,0.83707785]
[1736184020222,15.8841975,219.74,219.7,5.83707785]
[1736184020422,13.6841975,219.73,219.68,5.83707785]
[1736184020617,15.8841975,219.74,219.68,19.52127535]
[1736184020822,15.8841975,219.74,219.72,5.0]
[1736184021039,13.6841975,219.74,219.7,0.83707785]
[1736184021346,13.6841975,219.72,219.69,5.0]
[1736184021551,13.6841975,219.71,219.68,0.83707785]
[1736184021860,13.6841975,219.69,219.65,5.0]
[1736184022047,13.6841975,219.66,219.62,0.83707785]
[1736184022225,13.6841975,219.64,219.6,0.83707785]
[1736184022429,13.6841975,219.64,219.62,0.83707785]
[1736184022631,13.6841975,219.65,219.62,0.83707785]
[1736184023555,13.6841975,219.66,219.62,0.83707785]
[1736184023856,13.6841975,219.69,219.68,0.83707785]
[1736184024031,2.2,219.7,219.68,0.83707785]
[1736184024232,15.8841975,219.7,219.68,0.83707785]
[1736184026550,13.6841975,219.69,219.66,5.0]
[1736184026750,11.3769,219.75,219.66,5.0]
[1736184026751,13.6841975,219.67,219.66,5.0]
[1736184026954,13.6841975,219.68,219.65,0.83707785]
[1736184027552,13.6841975,219.68,219.66,5.0]
[1736184027751,13.6841975,219.69,219.66,5.0]
[1736184028251,15.8841975,219.72,219.68,5.0]
[1736184028851,15.8841975,219.72,219.69,0.83707785]
[1736184028852,2.2,219.72,219.69,0.83707785]
[1736184029352,2.2,219.72,219.71,0.83707785]
[1736184029734,13.6841975,219.74,219.71,0.83707785]
[1736184030144,13.6841975,219.73,219.71,0.83707785]
[1736184030353,13.6841975,219.72,219.69,0.83707785]
[1736184030664,13.6841975,219.72,219.7,5.0]
[1736184030864,13.6841975,219.73,219.7,5.0]
[1736184031360,13.6841975,219.74,219.72,0.83707785]
[1736184032142,13.6841975,219.78,219.74,0.83707785]
[1736184032459,13.6841975,219.78,219.74,5.83707785]
[1736184032656,13.6841975,219.79,219.76,0.83707785]
[1736184033238,13.6841975,219.79,219.74,5.83707785]
[1736184033440,13.6841975,219.78,219.76,0.83707785]
[1736184034549,13.6841975,219.78,219.74,5.83707785]
[1736184034751,13.6841975,219.78,219.76,0.83707785]
[1736184035860,13.6841975,219.78,219.74,5.83707785]
[1736184036162,13.6841975,219.77,219.74,5.83707785]
[1736184036539,13.6841975,219.75,219.71,0.83707785]
[1736184036739,13.6841975,219.72,219.7,5.0]
[1736184036958,13.6841975,219.71,219.7,5.0]
[1736184037894,13.6841975,219.71,219.65,5.0]
[1736184038167,13.6841975,219.66,219.65,5.0]
[1736184038866,13.6841975,219.68,219.65,5.0]
[1736184039364,13.6841975,219.66,219.65,5.0]
[1736184039545,13.6841975,219.67,219.65,5.0]
[1736184040559,13.6841975,219.68,219.65,5.0]
[1736184040765,13.6841975,219.72,219.69,5.0]
[1736184040950,13.6841975,219.71,219.68,0.83707785]
[1736184041279,13.6841975,219.72,219.68,0.83707785]
[1736184041565,13.6841975,219.71,219.68,0.83707785]
[1736184042266,13.6841975,219.7,219.68,0.83707785]
[1736184043386,13.6841975,219.69,219.65,5.0]
[1736184043542,0.25098,219.74,219.62,1.5532]
[1736184043543,13.6841975,219.66,219.62,0.83707785]
[1736184043747,13.6841975,219.65,219.63,5.0]
[1736184043964,13.6841975,219.66,219.63,5.0]
[1736184044165,13.6841975,219.68,219.63,5.0]
[1736184044375,13.6841975,219.68,219.65,0.83707785]
[1736184047176,13.6841975,219.69,219.65,5.83707785]
[1736184047547,13.6841975,219.68,219.65,5.83707785]
[1736184047748,13.6841975,219.66,219.65,5.83707785]
[1736184048672,13.6841975,219.66,219.63,5.83707785]
[1736184048980,13.6841975,219.67,219.63,5.83707785]
[1736184049777,13.6841975,219.69,219.65,5.83707785]
[1736184050657,13.6841975,219.68,219.65,5.83707785]
[1736184051878,13.6841975,219.68,219.65,0.83707785]
[1736184053380,6.0323,219.73,219.67,0.83707785]
[1736184053566,13.6841975,219.71,219.67,5.83707785]
[1736184054779,13.6841975,219.73,219.69,5.83707785]
[1736184055489,13.6841975,219.76,219.71,0.83707785]
[1736184055660,13.6841975,219.78,219.74,5.0]
[1736184055853,17.6164,219.83,219.75,0.83707785]
[1736184055854,13.6841975,219.8,219.75,0.83707785]
[1736184056049,13.6841975,219.81,219.77,0.83707785]
[1736184056260,13.6841975,219.8,219.77,0.83707785]
[1736184056465,13.6841975,219.79,219.77,0.83707785]
[1736184057966,13.6841975,219.8,219.77,0.83707785]
[1736184058167,13.6841975,219.79,219.77,0.83707785]
[1736184059811,13.6841975,219.8,219.77,0.83707785]
[1736184060106,13.6841975,219.79,219.77,0.83707785]
[1736184060305,13.6841975,219.79,219.76,5.0]
[1736184060605,13.6841975,219.78,219.75,0.83707785]
[1736184060771,13.6841975,219.77,219.75,0.83707785]
[1736184061094,13.6841975,219.78,219.75,0.83707785]
[1736184061701,13.6841975,219.76,219.73,0.83707785]
[1736184061911,13.6841975,219.74,219.73,0.83707785]
[1736184062693,13.6841975,219.76,219.73,0.83707785]
[1736184062902,13.6841975,219.76,219.72,5.0]
[1736184062903,13.6841975,219.78,219.75,0.83707785]
[1736184063106,13.6841975,219.79,219.77,0.83707785]
[1736184063812,13.6841975,219.78,219.76,5.0]
[1736184063972,13.6841975,219.77,219.74,5.0]
[1736184064170,13.6841975,219.75,219.73,0.83707785]
[1736184064497,13.6841975,219.74,219.72,5.0]
[1736184065501,13.6841975,219.73,219.72,5.0]
[1736184067292,13.6841975,219.73,219.71,0.83707785]
[1736184067480,13.6841975,219.72,219.71,0.83707785]
[1736184069605,13.6841975,219.73,219.71,0.83707785]
[1736184070691,13.6841975,219.72,219.71,0.83707785]
[1736184071207,13.6841975,219.73,219.71,0.83707785]
[1736184071407,2.2,219.76,219.71,0.83707785]
[1736184071408,13.6841975,219.74,219.71,0.83707785]
[1736184071586,13.6841975,219.73,219.71,0.83707785]
[1736184072281,13.6841975,219.72,219.71,0.83707785]
[1736184072695,13.6841975,219.73,219.71,0.83707785]
[1736184072911,13.6841975,219.72,219.7,5.0]
[1736184073111,8.75635808,219.71,219.7,5.0]
[1736184073427,2.2,219.76,219.7,5.0]
[1736184073428,8.75635808,219.72,219.7,5.0]
[1736184073717,8.75635808,219.72,219.69,0.83707785]
[1736184073922,8.75635808,219.72,219.7,5.0]
[1736184075205,2.2,219.82,219.75,5.83707785]
[1736184075428,7.9481,219.85,219.77,5.83707785]
[1736184075594,8.75635808,219.81,219.77,5.83707785]
[1736184075795,7.9481,219.85,219.79,5.83707785]
[1736184075996,8.75635808,219.82,219.79,5.83707785]
[1736184077518,13.66706624,219.82,219.79,5.83707785]
[1736184078099,13.66706624,219.81,219.79,5.83707785]
[1736184078304,13.66706624,219.8,219.79,5.83707785]
[1736184080324,13.66706624,219.8,219.79,0.83707785]
[1736184081222,13.66706624,219.8,219.78,5.0]
[1736184081421,13.66706624,219.79,219.78,5.0]
[1736184084125,13.66706624,219.81,219.79,0.83707785]
[1736184084329,13.66706624,219.82,219.81,0.83707785]
[1736184086933,13.66706624,219.82,219.8,5.0]
[1736184087135,13.66706624,219.81,219.8,5.0]
[1736184087434,0.12549,219.84,219.8,5.0]
[1736184087735,13.66706624,219.81,219.8,5.0]
[1736184088233,13.66706624,219.82,219.8,5.0]
[1736184091334,13.66706624,219.83,219.81,0.83707785]
[1736184092232,13.66706624,219.82,219.81,0.83707785]
[1736184092535,13.66706624,219.83,219.81,0.83707785]
[1736184095348,13.66706624,219.82,219.8,5.0]
[1736184095542,13.66706624,219.81,219.78,5.0]
[1736184095757,13.66706624,219.79,219.78,5.0]
[1736184096759,13.66706624,219.8,219.79,0.83707785]
[1736184097326,0.12549,219.85,219.79,0.83707785]
[1736184097327,13.66706624,219.81,219.79,0.83707785]
[1736184097943,13.66706624,219.84,219.83,0.83707785]
[1736184098144,13.66706624,219.85,219.83,0.83707785]
[1736184098348,13.66706624,219.84,219.83,0.83707785]
[1736184098551,13.66706624,219.84,219.81,5.83707785]
[1736184098859,13.66706624,219.82,219.81,5.83707785]
[1736184099439,13.66706624,219.83,219.81,5.83707785]
[1736184099840,13.66706624,219.84,219.81,5.83707785]
[1736184100041,13.66706624,219.83,219.81,5.83707785]
[1736184101030,8.74579614,219.83,219.81,5.83707785]
[1736184101858,8.74579614,219.85,219.81,5.83707785]
[1736184102031,8.74579614,219.85,219.83,5.83707785]
[1736184102354,28.71307669,219.86,219.83,5.83707785]
[1736184102355,8.74579614,219.84,219.83,5.83707785]
[1736184104959,48.76231311,219.88,219.86,5.0]
[1736184105153,48.76231311,219.88,219.87,0.83707785]
[1736184106756,57.50810925,219.88,219.87,0.83707785]
[1736184109236,26.0241325,219.88,219.87,0.83707785]
[1736184109437,34.76992864,219.88,219.87,0.83707785]
[1736184110158,26.0241325,219.88,219.87,0.83707785]
[1736184111134,26.0241325,219.88,219.87,24.61396185]
[1736184112338,26.0241325,219.88,219.87,24.73945185]
[1736184112657,26.0241325,219.88,219.87,33.48524799]
[1736184112863,8.74579614,219.95,219.94,5.83707785]
[1736184113454,20.0,219.97,219.94,5.83707785]
[1736184113783,8.74579614,219.95,219.94,5.83707785]
[1736184114058,7.7171,220.02,219.94,5.83707785]
[1736184114278,8.74579614,219.99,219.97,0.83707785]
[1736184114690,2.2,220.01,219.98,5.0]
[1736184114842,8.74579614,219.99,219.98,5.0]
[1736184115180,13.64578263,220.0,219.98,5.0]
[1736184117681,20.0,220.02,219.98,5.0]
[1736184117979,20.0,220.02,220.0,5.83707785]
[1736184117980,13.64578263,220.02,220.0,5.83707785]
[1736184118586,0.12549,220.04,220.0,5.83707785]
[1736184118787,59.0051751,220.09,220.02,5.83707785]
[1736184118788,13.64578263,220.06,220.02,5.83707785]
[1736184119086,13.64578263,220.06,220.04,5.0]
[1736184119675,13.64578263,220.07,220.05,0.83707785]
[1736184120269,37.21219109,220.09,220.07,5.83707785]
[1736184120873,37.21219109,220.09,220.07,19.48286048]
[1736184121265,37.21219109,220.09,220.07,5.83707785]
[1736184121673,50.85797372,220.09,220.07,5.83707785]
[1736184122270,13.64578263,220.08,220.07,5.83707785]
[1736184122895,50.85797372,220.09,220.07,5.83707785]
[1736184123077,13.64578263,220.08,220.07,5.83707785]
[1736184123278,50.85797372,220.09,220.07,5.83707785]
[1736184123667,37.21219109,220.09,220.07,5.83707785]
[1736184126074,13.64578263,220.08,220.07,5.83707785]
[1736184126376,13.64578263,220.08,220.05,5.83707785]
[1736184126570,13.64578263,220.06,220.05,5.0]
[1736184126771,13.64578263,220.06,220.05,5.83707785]
[1736184127188,13.64578263,220.06,220.05,0.83707785]
[1736184127394,13.64578263,220.06,220.05,5.0]
[1736184127581,13.64578263,220.06,220.05,0.83707785]
[1736184128095,13.64578263,220.06,220.03,5.83707785]
[1736184128298,13.64578263,220.04,220.03,5.83707785]
[1736184129497,13.64578263,220.06,220.05,5.0]
[1736184129883,13.64578263,220.06,220.05,5.83707785]
[1736184131882,13.64578263,220.06,220.03,5.83707785]
[1736184132100,0.12549,220.08,220.05,0.83707785]
[1736184132682,0.12549,220.08,220.03,5.83707785]
[1736184132879,13.64578263,220.04,220.01,5.83707785]
[1736184133096,13.64578263,220.02,220.01,5.83707785]
[1736184134219,13.64578263,220.02,219.77,7.11538012]
[1736184134220,20.12549,219.87,219.77,7.11538012]
[1736184134502,13.64578263,219.86,219.78,13.64578263]
[1736184135089,15.84578263,219.88,219.8,13.64578263]
[1736184135398,13.64578263,219.9,219.83,23.776884]
[1736184137802,13.64578263,219.91,219.83,13.64578263]
[1736184138000,13.64578263,219.91,219.84,0.12549]
[1736184138774,13.64578263,219.92,219.84,13.64578263]
[1736184138983,13.64578263,219.91,219.85,23.776884]
[1736184139278,13.64578263,219.9,219.84,23.902374]
[1736184139509,13.64578263,219.89,219.84,0.12549]
[1736184139691,13.64578263,219.9,219.84,0.12549]
[1736184140980,13.64578263,219.91,219.84,0.12549]
[1736184141280,13.64578263,219.9,219.84,0.12549]
[1736184142285,13.64578263,219.89,219.83,23.902374]
[1736184143006,13.64578263,219.9,219.85,0.12549]
[1736184143485,13.64578263,219.91,219.85,0.12549]
[1736184143822,13.64578263,219.89,219.84,0.12549]
[1736184144192,0.12549,219.93,219.84,23.902374]
[1736184144193,13.64578263,219.9,219.84,23.902374]
[1736184145592,13.64578263,219.91,219.84,13.77127263]
[1736184145796,13.64578263,219.94,219.89,0.12549]
[1736184145991,13.64578263,219.99,219.93,0.12549]
[1736184146594,13.64578263,219.95,219.89,23.902374]
[1736184146905,13.64578263,219.97,219.92,0.12549]
[1736184147205,13.64578263,219.97,219.94,0.12549]
[1736184147606,13.64578263,219.98,219.94,0.12549]
[1736184147813,13.64578263,219.97,219.91,23.776884]
[1736184147986,13.64578263,219.98,219.91,23.776884]
[1736184148191,13.64578263,219.98,219.91,13.64578263]
[1736184148414,13.64578263,219.99,219.93,23.902374]
[1736184148620,13.64578263,219.98,219.93,0.12549]
[1736184149283,13.64578263,219.96,219.89,13.64578263]
[1736184149482,13.64578263,219.97,219.9,33.64578263]
[1736184149712,13.64578263,219.98,219.91,37.54815663]
[1736184150007,13.64578263,219.97,219.91,23.902374]
[1736184150207,13.64578263,219.94,219.88,1.5839]
[1736184150408,0.12549,219.98,219.88,15.22968263]
[1736184150613,13.64578263,219.96,219.89,37.54815663]
[1736184150805,13.64578263,219.97,219.92,0.12549]
[1736184152711,13.64578263,219.95,219.88,15.22968263]
[1736184153209,13.64578263,219.94,219.88,1.5839]
[1736184153410,13.64578263,219.94,219.89,0.12549]
[1736184154494,13.64578263,219.93,219.89,0.12549]
[1736184155315,13.64578263,219.94,219.89,0.12549]
[1736184157017,13.64578263,219.93,219.89,0.12549]
[1736184157215,13.64578263,219.93,219.88,1.5839]
[1736184157391,0.12549,219.99,219.88,1.5839]
[1736184157392,13.64578263,219.9,219.88,1.5839]
[1736184158212,13.64578263,219.89,219.88,1.5839]
[1736184159220,13.64578263,219.9,219.88,1.5839]
[1736184160421,13.64578263,219.91,219.88,1.5839]
[1736184161316,13.64578263,219.93,219.89,0.12549]
[1736184162115,13.64578263,219.92,219.89,0.12549]
[1736184162497,13.64578263,219.9,219.84,6.6067]
[1736184163721,13.64578263,219.91,219.85,23.902374]
[1736184164629,13.64578263,219.92,219.85,37.54815663]
[1736184164915,0.25098,219.95,219.85,37.54815663]
[1736184165093,13.64578263,219.92,219.85,37.54815663]
[1736184165524,20.0,219.97,219.9,13.64578263]
[1736184165702,13.64578263,219.95,219.89,0.12549]
[1736184166023,13.64578263,219.92,219.85,13.64578263]
[1736184166521,13.64578263,219.93,219.87,23.902374]
[1736184167021,13.64578263,219.95,219.89,0.12549]
[1736184167324,13.64578263,219.96,219.91,0.12549]
[1736184168019,13.64578263,219.95,219.9,0.12549]
[1736184168221,13.64578263,219.94,219.9,0.12549]
[1736184169431,13.64578263,219.95,219.9,0.12549]
[1736184170326,2.2,220.0,219.91,13.64578263]
[1736184170525,13.64578263,219.97,219.9,13.77127263]
[1736184170718,13.64578263,219.96,219.9,0.12549]
[1736184171118,13.64578263,219.95,219.9,0.12549]
[1736184171319,13.64578263,219.94,219.9,0.12549]
[1736184171939,13.64578263,219.95,219.9,0.12549]
[1736184172831,13.64578263,219.96,219.9,0.12549]
[1736184174141,13.64578263,219.95,219.88,37.42266663]
[1736184174313,13.64578263,219.92,219.85,13.64578263]
[1736184174627,13.64578263,219.9,219.84,17.9784]
[1736184175032,13.64578263,219.9,219.85,23.902374]
[1736184175330,13.64578263,219.91,219.85,23.902374]
[1736184178341,0.12549,219.99,219.84,6.6067]
[1736184178342,13.64578263,219.89,219.84,6.6067]
[1736184179038,0.12549,219.96,219.84,6.6067]
[1736184179224,13.64578263,219.9,219.84,6.6067]
[1736184180342,13.64578263,219.89,219.85,20.0]
[1736184181037,8.74078896,219.89,219.85,20.0]
[1736184181539,8.74078896,219.88,219.83,1.5258]
[1736184181843,8.74078896,219.87,219.83,1.5258]
[1736184182136,8.74078896,219.86,219.79,8.74078896]
[1736184182622,8.74078896,219.86,219.8,23.902374]
[1736184183039,13.66214161,219.83,219.76,8.63098012]
[1736184183245,13.66214161,219.82,219.76,1.5156]
[1736184183555,13.66214161,219.86,219.81,0.12549]
[1736184183711,13.66214161,219.89,219.82,13.66214161]
[1736184184156,13.66214161,219.88,219.81,13.78763161]
[1736184185034,13.66214161,219.87,219.81,23.902374]
[1736184187558,13.66214161,219.89,219.81,37.56451561]
[1736184187770,13.66214161,219.9,219.83,13.78763161]
[1736184188073,13.66214161,219.91,219.84,13.66214161]
[1736184188246,13.66214161,219.92,219.85,33.66214161]
[1736184188445,25.02574161,220.0,219.87,13.66214161]
[1736184188446,13.66214161,219.94,219.87,13.66214161]
[1736184188670,13.66214161,219.95,219.88,13.66214161]
[1736184189464,13.66214161,219.92,219.87,0.12549]
[1736184189975,13.66214161,219.93,219.87,0.12549]
[1736184190667,13.66214161,219.94,219.87,13.78763161]
[1736184190869,13.66214161,219.93,219.87,0.12549]
[1736184191243,13.66214161,219.94,219.87,13.78763161]
[1736184191444,13.66214161,219.96,219.89,13.78763161]
[1736184191641,13.66214161,219.98,219.91,13.66214161]
[1736184191865,13.66214161,220.0,219.93,13.66214161]
[1736184192165,13.66214161,220.02,219.95,13.66214161]
[1736184193890,13.66214161,220.03,219.96,13.66214161]
[1736184194379,0.12549,220.04,219.95,37.56451561]
[1736184194380,13.66214161,220.02,219.95,37.56451561]
[1736184194780,13.66214161,220.01,219.95,23.902374]
[1736184195685,0.12549,220.04,219.95,37.56451561]
[1736184195686,13.66214161,220.02,219.95,37.56451561]
[1736184196190,13.66214161,220.01,219.95,23.902374]
[1736184197066,13.66214161,219.99,219.95,20.0]
[1736184197366,13.66214161,220.0,219.95,20.0]
[1736184198193,13.66214161,219.99,219.95,20.0]
[1736184198706,13.66214161,219.96,219.9,6.4911]
[1736184198910,13.66214161,219.95,219.9,6.4911]
[1736184199267,13.66214161,219.96,219.9,6.4911]
[1736184199603,13.66214161,220.0,219.93,13.66214161]
[1736184200408,13.66214161,219.99,219.92,13.78763161]
[1736184201010,0.12549,220.04,219.93,13.66214161]
[1736184201198,13.66214161,220.0,219.93,13.66214161]
[1736184202020,13.66214161,219.99,219.92,13.78763161]
[1736184202225,13.66214161,220.0,219.93,13.66214161]
[1736184203011,8.73225268,220.0,219.93,8.73225268]
[1736184204132,8.73225268,219.99,219.92,8.85774268]
[1736184205394,8.73225268,219.96,219.9,6.4911]
[1736184205591,8.73225268,219.94,219.89,1.5045]
[1736184205810,2.2,219.97,219.89,30.23675268]
[1736184206001,8.73225268,219.95,219.9,23.902374]
[1736184206512,8.73225268,219.95,219.89,1.5045]
[1736184206911,8.73225268,219.94,219.89,1.5045]
[1736184207116,8.73225268,219.95,219.89,1.5045]
[1736184211833,8.73225268,219.95,219.89,30.23675268]
[1736184213336,8.73225268,219.96,219.9,8.73225268]
[1736184214207,8.73225268,219.95,219.89,30.23675268]
[1736184215926,8.73225268,219.95,219.89,21.5045]
[1736184216226,8.73225268,219.94,219.89,21.5045]
[1736184216405,8.73225268,219.91,219.89,1.5045]
[1736184216605,8.73225268,219.9,219.84,1.531]
[1736184216913,8.73225268,219.88,219.84,1.531]
[1736184217629,8.73225268,219.89,219.85,20.0]
[1736184218013,8.73225268,219.9,219.85,20.0]
[1736184218338,8.73225268,219.89,219.85,20.0]
[1736184218622,8.73225268,219.88,219.84,1.531]
[1736184219132,8.73225268,219.87,219.84,1.531]
[1736184220829,8.73225268,219.88,219.84,1.531]
[1736184221003,8.73225268,219.87,219.84,1.531]
[1736184221203,8.73225268,219.88,219.84,1.531]
[1736184221614,8.73225268,219.87,219.84,1.531]
[1736184221812,20.0,219.93,219.84,1.531]
[1736184221813,8.73225268,219.89,219.84,1.531]
[1736184222026,8.73225268,219.91,219.84,10.26325268]
[1736184222224,0.12549,219.94,219.84,10.26325268]
[1736184222424,8.73225268,219.91,219.84,10.26325268]
[1736184225706,8.73225268,219.91,219.85,8.73225268]
[1736184226435,32.1682422,219.99,219.88,8.73225268]
[1736184226730,8.73225268,219.97,219.9,8.73225268]
[1736184226931,8.73225268,219.96,219.9,8.73225268]
[1736184227228,8.73225268,219.96,219.89,8.73225268]
[1736184228214,8.73225268,219.95,219.88,8.73225268]
[1736184228415,8.73225268,219.94,219.87,8.73225268]
[1736184229946,8.73225268,219.95,219.88,8.73225268]